bitfinex/quotes_ETHUSD_20250706
["timestamp","ask_amount","ask_price","bid_price","bid_amount"]
[1751829507692,0.001,2540.0,2539.8,3.93720801]
[1751829507993,0.001,2540.0,2539.6,0.9629311]
[1751829508196,0.001,2540.0,2539.9,3.93716288]
[1751829508397,0.001,2540.0,2539.9,5.68168872]
[1751829511101,0.001,2540.0,2539.9,5.6423171]
[1751829515909,0.001,2540.0,2539.9,5.68168872]
[1751829517917,0.001,2540.0,2539.9,13.62868872]
[1751829518104,0.001,2540.0,2539.9,13.5893171]
[1751829527726,0.001,2540.0,2539.9,7.946]
[1751829529646,0.001,2540.0,2539.8,11.88331779]
[1751829531011,0.001,2540.0,2539.8,7.946]
[1751829532921,0.001,2540.0,2539.7,11.88339318]
[1751829533539,0.001,2540.0,2539.8,3.93731635]
[1751829535552,0.001,2540.0,2539.9,3.93716288]
[1751829535717,0.001,2540.0,2539.9,4.7505345]
[1751829535924,0.001,2540.0,2539.9,6.41391959]
[1751829536948,0.001,2540.0,2539.9,14.35991959]
[1751829537151,0.001,2540.0,2539.9,14.32054797]
[1751829539021,0.001,2540.0,2539.9,16.6759142]
[1751829539956,0.001,2540.0,2539.9,7.06652911]
[1751829540154,0.001,2540.0,2539.9,15.05190073]
[1751829540467,0.001,2540.0,2539.9,12.65716288]
[1751829546967,0.001,2540.0,2539.9,15.01252911]
[1751829548266,0.001,2540.0,2539.9,14.23752911]
[1751829548451,0.001,2540.0,2539.9,11.88216288]
[1751829549877,0.001,2540.0,2539.9,12.70196288]
[1751829550173,0.001,2540.0,2539.9,14.95473236]
[1751829551078,0.001,2540.0,2539.9,17.31009859]
[1751829551281,0.001,2540.0,2539.9,14.95473236]
[1751829551454,0.001,2540.0,2539.9,18.4877817]
[1751829552971,0.001,2540.0,2539.9,14.95473236]
[1751829557277,0.001,2540.0,2539.9,7.00973236]
[1751829557480,0.001,2540.0,2539.8,2.36117423]
[1751829557682,8.69203019,2539.9,2539.6,2.36117423]
[1751829557872,9.46323019,2539.9,2539.7,7.944]
[1751829558277,9.46323019,2539.9,2539.6,2.36117423]
[1751829558471,9.46323019,2539.9,2539.4,9.03564934]
[1751829558472,0.94642302,2539.8,2539.5,3.93772838]
[1751829558671,8.69203019,2539.7,2539.4,2.36117423]
[1751829558872,8.69203019,2539.7,2539.4,11.88187235]
[1751829559487,8.69203019,2539.7,2539.4,7.944]
[1751829560489,8.69203019,2539.7,2539.4,3.93788427]
[1751829560690,8.69203019,2539.5,2539.3,0.002]
[1751829561974,12.62981364,2539.5,2539.3,0.002]
[1751829562177,4.75423809,2539.4,2539.3,0.002]
[1751829562377,5.70066111,2539.4,2539.3,0.002]
[1751829562795,1.76272302,2539.4,2539.3,0.002]
[1751829573219,5.70066111,2539.4,2539.3,0.002]
[1751829574615,1.76272302,2539.4,2539.3,0.002]
[1751829577810,18.57003019,2539.6,2539.3,0.002]
[1751829580315,2.7575,2539.7,2539.4,3.93787081]
[1751829580488,10.0,2539.6,2539.4,3.93787081]
[1751829580825,10.0,2539.6,2539.3,3.94001665]
[1751829580993,2.7575,2539.7,2539.3,3.94001665]
[1751829581318,10.0,2539.6,2539.3,3.94001665]
[1751829581686,10.0,2539.6,2539.4,3.93793286]
[1751829582931,1.932,2539.8,2539.6,3.93762489]
[1751829583095,1.932,2539.8,2539.6,3.93753499]
[1751829586422,1.932,2539.8,2539.7,3.93747292]
[1751829586824,1.932,2539.8,2539.6,3.93756823]
[1751829589355,1.932,2539.8,2539.4,3.93783944]
[1751829592755,5.86937076,2539.8,2539.3,3.94000739]
[1751829592959,8.69203019,2539.5,2539.3,0.002]
[1751829594128,4.76004524,2539.7,2539.3,3.94005677]
[1751829594129,9.51453019,2539.7,2539.3,3.94005677]
[1751829599561,9.51453019,2539.7,2539.3,0.002]
[1751829599768,13.45204947,2539.7,2539.3,0.002]
[1751829600542,12.62996828,2539.4,2539.3,0.002]
[1751829601049,0.8052,2539.8,2539.3,0.002]
[1751829601247,0.36773115,2539.7,2539.3,3.97945746]
[1751829601664,0.36773115,2539.7,2539.3,0.04138093]
[1751829601970,12.62954994,2539.7,2539.3,0.002]
[1751829602848,8.69203019,2539.4,2539.3,0.002]
[1751829603053,13.44656828,2539.4,2539.3,0.002]
[1751829603284,23.44656828,2539.4,2539.3,0.002]
[1751829603742,33.70105631,2539.4,2539.3,0.002]
[1751829611565,33.70179815,2539.4,2539.3,0.002]
[1751829612269,33.70178934,2539.4,2539.3,0.002]
[1751829612589,33.33356828,2539.4,2539.3,0.002]
[1751829615301,33.70177249,2539.4,2539.3,0.002]
[1751829615681,33.33356828,2539.4,2539.3,0.002]
[1751829616321,33.701791,2539.4,2539.3,0.002]
[1751829620904,33.70197717,2539.4,2539.3,0.002]
[1751829624322,32.8855313,2539.4,2539.3,0.002]
[1751829624526,19.06059321,2539.4,2539.3,0.002]
[1751829624697,28.95059321,2539.4,2539.3,0.002]
[1751829625726,32.8885313,2539.4,2539.3,0.002]
[1751829627203,28.95059321,2539.4,2539.3,0.002]
[1751829627511,19.893,2539.4,2539.3,0.002]
[1751829628299,9.893,2539.4,2539.3,0.002]
[1751829629644,1.934,2539.4,2539.3,0.002]
[1751829641021,1.935,2539.4,2539.3,0.002]
[1751829641712,0.001,2539.4,2539.3,0.002]
[1751829641913,0.001,2539.4,2539.3,3.94009317]
[1751829642144,0.001,2539.4,2539.3,0.002]
[1751829653320,12.63096828,2539.4,2539.3,0.002]
[1751829653519,13.43346828,2539.4,2539.3,0.002]
[1751829654354,9.86485489,2539.4,2539.3,0.002]
[1751829654555,9.49553019,2539.4,2539.3,0.002]
[1751829655150,8.69303019,2539.4,2539.3,0.002]
[1751829655352,9.06242386,2539.4,2539.3,0.002]
[1751829659144,0.37039367,2539.4,2539.3,0.002]
[1751829659459,0.37039367,2539.4,2539.3,3.94009317]
[1751829659680,0.37039367,2539.4,2539.3,4.81257265]
[1751829659890,0.001,2539.4,2539.3,0.87447948]
[1751829660584,0.001,2539.4,2539.3,4.81257265]
[1751829660985,0.001,2539.4,2539.3,0.87447948]
[1751829661185,0.001,2539.4,2539.3,0.002]
[1751829661483,0.37054445,2539.4,2539.3,0.002]
[1751829662094,4.30848254,2539.4,2539.3,0.002]
[1751829662392,12.25648254,2539.4,2539.3,0.002]
[1751829664685,31.74231273,2539.4,2539.3,0.002]
[1751829664864,31.74231273,2539.4,2539.0,0.002]
[1751829664865,4.70650337,2539.1,2539.0,0.002]
[1751829665066,23.76807801,2539.1,2539.0,0.002]
[1751829667258,23.39853356,2539.1,2539.0,0.002]
[1751829667460,23.76746389,2539.1,2539.0,0.002]
[1751829667871,23.76746391,2539.1,2539.0,0.002]
[1751829670461,23.76715217,2539.1,2539.0,0.002]
[1751829671303,0.36861861,2539.1,2539.0,0.002]
[1751829671502,11.932,2539.3,2539.0,0.002]
[1751829672159,15.87012653,2539.3,2539.0,0.002]
[1751829678203,23.82212653,2539.3,2539.0,0.002]
[1751829681607,19.884,2539.3,2539.0,0.002]
[1751829681901,23.8221138,2539.3,2539.0,0.002]
[1751829682401,3.93825905,2539.2,2539.0,0.002]
[1751829682902,23.82217401,2539.3,2539.0,0.002]
[1751829684502,3.93827145,2539.2,2539.0,0.002]
[1751829688377,23.82215448,2539.3,2539.0,0.002]
[1751829688574,1.934,2539.4,2539.1,0.8015]
[1751829688807,0.36880103,2539.3,2539.1,0.8015]
[1751829689311,5.87195979,2539.4,2539.1,0.8015]
[1751829690009,3.93818095,2539.3,2539.1,0.8015]
[1751829690408,14.56397627,2539.4,2539.1,0.8015]
[1751829690409,3.93824826,2539.2,2539.1,0.8015]
[1751829692311,3.93817035,2539.3,2539.1,0.8015]
[1751829693528,3.93824826,2539.2,2539.1,0.8015]
[1751829694892,3.93840337,2539.1,2539.0,0.002]
[1751829695209,12.63034545,2539.2,2539.0,0.002]
[1751829695589,3.93840337,2539.1,2539.0,0.002]
[1751829703784,4.30781267,2539.1,2539.0,0.002]
[1751829705619,0.3694093,2539.1,2539.0,0.002]
[1751829705800,12.25581267,2539.1,2539.0,0.002]
[1751829706402,2.3024093,2539.1,2539.0,0.8169]
[1751829706708,1.933,2539.1,2539.0,0.8169]
[1751829708118,1.932,2539.2,2539.0,0.8169]
[1751829710785,3.93809783,2539.3,2539.0,0.8169]
[1751829710990,2.30135688,2539.2,2539.0,0.8169]
[1751829711216,1.932,2539.2,2539.0,0.8169]
[1751829712418,22.63103463,2539.4,2539.0,0.8169]
[1751829712419,10.001,2539.4,2539.0,4.75534352]
[1751829712594,1.932,2539.2,2539.0,4.75534352]
[1751829714125,1.932,2539.2,2539.0,0.8169]
[1751829718326,10.001,2539.4,2539.0,4.75542961]
[1751829718531,2.30138476,2539.3,2539.0,4.75542961]
[1751829718708,0.36938476,2539.2,2539.0,4.75542961]
[1751829718904,0.36938476,2539.2,2539.0,5.63309868]
[1751829719104,0.36938476,2539.2,2539.0,1.69456907]
[1751829720027,1.932,2539.3,2539.0,1.69456907]
[1751829720230,1.932,2539.3,2539.0,0.8169]
[1751829720231,0.36938337,2539.2,2539.0,0.8169]
[1751829723406,3.93840337,2539.1,2539.0,0.002]
[1751829723601,3.93834949,2539.2,2539.0,0.002]
[1751829726848,12.63043356,2539.1,2539.0,0.002]
[1751829727053,12.99989785,2539.1,2539.0,0.002]
[1751829727345,12.63043356,2539.1,2539.0,0.002]
[1751829728238,9.06150089,2539.1,2539.0,0.002]
[1751829728928,0.3694707,2539.1,2539.0,0.002]
[1751829734655,0.3694707,2539.1,2539.0,3.94055848]
[1751829734864,0.3694707,2539.2,2539.0,0.002]
[1751829737242,0.36952767,2539.1,2539.0,0.002]
[1751829737443,0.36952772,2539.1,2539.0,0.002]
[1751829743334,0.36952772,2539.2,2539.0,0.002]
[1751829743546,0.36952772,2539.1,2539.0,0.002]
[1751829744339,0.36952772,2539.2,2539.0,0.002]
[1751829747481,0.36952657,2539.1,2539.0,0.002]
[1751829747674,0.36952657,2539.2,2539.0,3.94055848]
[1751829750171,0.36952657,2539.2,2539.0,0.002]
[1751829750875,0.36952657,2539.2,2539.0,3.94053629]
[1751829751869,0.36952657,2539.2,2539.0,0.002]
[1751829752674,18.57303019,2539.3,2539.0,0.002]
[1751829752852,7.32824947,2539.2,2539.0,0.002]
[1751829753052,0.3695435,2539.1,2539.0,0.002]
[1751829753550,0.3695435,2539.1,2539.0,3.94055848]
[1751829754271,0.3695435,2539.1,2539.0,0.002]
[1751829754843,23.00464687,2539.1,2539.0,0.002]
[1751829755091,23.06224687,2539.1,2539.0,0.002]
[1751829755844,23.06215772,2539.1,2539.0,0.002]
[1751829756877,31.76411055,2539.1,2539.0,0.002]
[1751829757242,27.82570718,2539.1,2539.0,0.002]
[1751829757448,31.76411055,2539.1,2539.0,0.002]
[1751829766216,31.76511055,2539.1,2539.0,0.002]
[1751829771019,31.76459293,2539.1,2539.0,0.002]
[1751829774127,27.82618956,2539.1,2539.0,0.002]
[1751829774428,12.29993673,2539.1,2539.0,0.002]
[1751829774614,16.2383401,2539.1,2539.0,0.002]
[1751829777343,16.23846371,2539.1,2539.0,0.002]
[1751829777944,15.86940337,2539.1,2539.0,0.002]
[1751829779954,16.23853755,2539.1,2539.0,0.002]
[1751829780818,12.30013418,2539.1,2539.0,0.002]
[1751829782053,1.931,2539.1,2539.0,0.002]
[1751829782250,1.931,2539.1,2539.0,3.94055848]
[1751829782553,0.001,2539.3,2539.2,4.70344826]
[1751829782847,0.001,2539.3,2539.2,4.74283074]
[1751829783254,0.001,2539.4,2539.3,5.27059317]
[1751829783466,0.001,2539.8,2539.6,4.72012797]
[1751829783759,0.001,2539.8,2539.6,5.62529295]
[1751829788426,1e-08,2539.8,2539.7,4.69717292]
[1751829788858,1e-08,2539.8,2539.7,4.73654764]
[1751829790526,1e-08,2539.8,2539.7,14.73654764]
[1751829790854,1e-08,2539.8,2539.7,18.5460654]
[1751829793829,1e-08,2540.0,2539.9,3.93716288]
[1751829794053,1e-08,2540.0,2539.9,12.7218345]
[1751829794252,1e-08,2540.0,2539.9,12.68246288]
[1751829804774,1e-08,2540.0,2539.9,22.68246288]
[1751829804948,1e-08,2540.0,2539.9,26.12307469]
[1751829805151,1e-08,2540.1,2540.0,13.93700787]
[1751829805466,1e-08,2540.1,2540.0,14.74190787]
[1751829806549,1e-08,2540.1,2540.0,23.9938607]
[1751829809464,1e-08,2540.1,2540.0,15.29190787]
[1751829809665,1e-08,2540.1,2540.0,3.12969724]
[1751829809877,1e-08,2540.1,2540.0,3.93700787]
[1751829810382,1e-08,2540.1,2540.0,3.97637794]
[1751829818688,1e-08,2540.1,2540.0,0.03937007]
[1751829818992,1e-08,2540.1,2539.9,7.941]
[1751829819302,1e-08,2540.1,2540.0,3.93700787]
[1751829820163,1e-08,2540.1,2539.9,11.8780813]
[1751829820392,1e-08,2540.1,2539.9,13.45961906]
[1751829821193,1e-08,2540.1,2539.9,7.941]
[1751829823099,1e-08,2540.1,2539.9,0.002]
[1751829823272,1e-08,2540.1,2539.9,7.941]
[1751829824613,3.93685646,2540.1,2539.9,7.941]
[1751829824774,4.76950787,2540.0,2539.9,0.002]
[1751829824981,6.11665394,2540.0,2539.9,0.002]
[1751829826009,16.48127861,2540.0,2539.9,0.002]
[1751829827402,24.42127861,2540.0,2539.9,0.002]
[1751829828906,24.05665394,2540.0,2539.9,0.002]
[1751829829214,24.42073989,2540.0,2539.9,0.002]
[1751829830402,24.05665394,2540.0,2539.9,0.002]
[1751829830806,16.11665394,2540.0,2539.9,0.002]
[1751829831009,24.63850787,2540.0,2539.9,0.002]
[1751829837591,25.00614545,2540.0,2539.9,0.002]
[1751829838524,25.00623435,2540.0,2539.9,0.002]
[1751829840527,25.55623435,2540.0,2539.9,0.002]
[1751829841094,25.55637959,2540.0,2539.9,0.002]
[1751829843731,25.55640736,2540.0,2539.9,0.002]
[1751829844831,3.93826379,2539.2,2539.0,0.002]
[1751829844996,12.64021662,2539.2,2539.0,0.002]
[1751829846420,3.93840337,2539.1,2539.0,0.002]
[1751829846799,12.64027461,2539.2,2539.0,0.002]
[1751829847121,20.58427461,2539.2,2539.0,0.002]
[1751829847317,3.93840337,2539.1,2539.0,0.002]
[1751829862555,20.58429993,2539.2,2539.0,0.002]
[1751829862762,19.872,2539.3,2539.0,0.002]
[1751829864227,7.943,2539.2,2539.0,0.002]
[1751829870282,3.93825546,2539.2,2539.0,0.002]
[1751829871265,3.93840337,2539.1,2539.0,0.002]
[1751829873375,4.30766495,2539.1,2539.0,0.002]
[1751829875775,0.36926158,2539.1,2539.0,0.002]
[1751829876979,0.36926158,2539.1,2539.0,0.8152]
[1751829877176,1.929,2539.3,2539.0,4.7930713]
[1751829877364,0.36937209,2539.2,2539.1,4.81156442]
[1751829877681,1.929,2539.3,2539.2,4.75144826]
[1751829877877,18.93665283,2540.0,2539.3,3.93809317]
[1751829878075,18.93665283,2540.0,2539.5,3.93773975]
[1751829878076,14.18352059,2539.9,2539.5,3.93773975]
[1751829878379,0.36935384,2539.8,2539.6,0.8117]
[1751829881884,0.36935384,2539.8,2539.6,4.74922456]
[1751829883875,18.70295283,2539.9,2539.6,4.74922456]
[1751829885603,10.001,2539.9,2539.7,3.93736883]
[1751829889316,0.001,2539.9,2539.7,3.93736883]
[1751829889500,10.001,2539.9,2539.7,3.93736883]
[1751829889695,0.001,2539.9,2539.7,3.93736883]
[1751829891102,0.001,2539.9,2539.6,0.8117]
[1751829891493,0.001,2539.9,2539.6,4.74928442]
[1751829894716,8.70295283,2539.9,2539.6,3.93758442]
[1751829894897,8.70195283,2539.7,2539.4,3.93785973]
[1751829895418,8.70295283,2539.9,2539.5,3.93776333]
[1751829895624,16.64395283,2539.9,2539.5,3.93776333]
[1751829897242,16.64395283,2539.9,2539.6,3.93762295]
[1751829897734,16.64395283,2539.9,2539.5,3.93771181]
[1751829899834,20.58111579,2539.9,2539.5,3.93771181]
[1751829900139,20.58111579,2539.9,2539.4,3.97723965]
[1751829900434,3.93743627,2539.8,2539.3,4.70911986]
[1751829900618,20.58119832,2539.9,2539.3,4.70911986]
[1751829900816,20.58119832,2539.9,2539.4,0.03937938]
[1751829901310,20.58119832,2539.9,2539.5,0.002]
[1751829901935,20.58119832,2539.9,2539.5,3.93976963]
[1751829902140,16.64395283,2539.9,2539.6,3.937621]
[1751829903414,0.001,2539.9,2539.6,4.765321]
[1751829904122,0.001,2539.9,2539.6,0.8277]
[1751829904843,0.001,2539.9,2539.5,3.93970726]
[1751829905621,0.001,2539.9,2539.6,3.93756484]
[1751829906945,0.001,2539.9,2539.6,3.93761403]
[1751829909562,0.36838283,2539.9,2539.6,3.93761403]
[1751829909856,0.001,2539.9,2539.6,3.93761403]
[1751829910061,0.36838373,2539.9,2539.6,3.93761403]
[1751829910355,0.001,2539.9,2539.6,3.93762797]
[1751829910529,0.001,2539.9,2539.7,3.93740844]
[1751829911153,0.36840418,2539.9,2539.7,3.93740844]
[1751829911445,0.001,2539.9,2539.8,3.93731789]
[1751829917061,0.001,2539.9,2539.8,4.80206052]
[1751829920356,0.001,2539.9,2539.8,4.84143369]
[1751829920529,0.001,2539.9,2539.8,5.66583369]
[1751829923470,0.001,2539.9,2539.8,5.62646052]
[1751829925772,0.001,2539.9,2539.8,12.78143369]
[1751829925931,0.001,2539.9,2539.8,12.74206052]
[1751829926647,0.001,2539.9,2539.7,3.93745727]
[1751829927329,0.001,2539.9,2539.8,3.93731789]
[1751829929062,0.001,2539.9,2539.7,3.93741588]
[1751829929960,0.001,2539.9,2539.6,3.93761978]
[1751829929961,0.001,2539.9,2539.8,3.93731789]
[1751829933846,0.001,2539.9,2539.8,4.73721789]
[1751829934047,0.001,2539.9,2539.8,5.84035482]
[1751829935359,0.001,2539.9,2539.8,3.93731789]
[1751829946083,0.001,2539.9,2539.8,3.97669106]
[1751829946297,0.001,2539.9,2539.8,3.97869106]
[1751829949785,0.001,2539.9,2539.8,6.33539895]
[1751829955891,0.001,2539.9,2539.8,7.09069895]
[1751829956059,0.001,2539.9,2539.8,9.34119238]
[1751829956258,0.001,2539.9,2539.8,9.30181921]
[1751829957365,0.001,2539.9,2539.8,6.94511132]
[1751829957572,0.001,2539.9,2539.8,6.98448449]
[1751829958991,0.001,2539.9,2539.8,7.88448449]
[1751829959285,0.001,2539.9,2539.8,7.84511132]
[1751829964704,0.001,2539.9,2539.8,11.37990314]
[1751829965063,0.001,2539.9,2539.8,7.84511132]
[1751829971607,0.001,2539.9,2539.8,17.84511132]
[1751829975201,0.001,2539.9,2539.8,18.39511132]
[1751829975390,1e-08,2540.1,2540.0,5.25500787]
[1751829975591,1e-08,2540.1,2540.0,17.90485774]
[1751829975789,1e-08,2540.1,2540.0,14.37339815]
[1751829979605,1e-08,2540.1,2540.0,6.43539815]
[1751829979911,1e-08,2540.1,2540.0,14.41276822]
[1751829980206,1e-08,2540.1,2540.0,14.37339815]
[1751829980408,1e-08,2540.1,2540.0,15.16959815]
[1751829982115,1e-08,2540.1,2540.0,15.71959815]
[1751829982410,1e-08,2540.1,2540.0,19.25105774]
[1751829984011,1e-08,2540.1,2540.0,25.71959815]
[1751829984997,1e-08,2540.1,2540.0,34.42155098]
[1751829985886,1e-08,2540.1,2540.0,39.11155098]
[1751829986197,1e-08,2540.1,2540.0,43.82460674]
[1751829990805,1e-08,2540.1,2540.0,22.47159815]
[1751829991097,1e-08,2540.1,2540.0,21.12539815]
[1751829991417,1e-08,2540.1,2540.0,7.464615]
[1751829991624,1e-08,2540.1,2540.0,3.52760713]
[1751829991920,1e-08,2540.1,2539.8,2.35448915]
[1751829991921,0.7729,2540.0,2539.8,2.35448915]
[1751829992288,0.7729,2540.0,2539.8,0.002]
[1751829992490,0.7729,2540.0,2539.8,7.939]
[1751829992696,0.7729,2540.0,2539.8,2.35448915]
[1751829993025,0.8023,2539.9,2539.8,2.35448915]
[1751829993391,0.8023,2539.9,2539.8,0.002]
[1751829995523,0.8023,2539.9,2539.8,3.93931789]
[1751830013841,0.78690001,2540.1,2540.0,3.93700787]
[1751830015639,1e-08,2540.1,2540.0,4.72462175]
[1751830015938,1e-08,2540.1,2540.0,4.76399182]
[1751830016326,1e-08,2540.1,2540.0,18.77955174]
[1751830016537,1e-08,2540.1,2540.0,18.74018167]
[1751830018319,1e-08,2540.1,2540.0,16.38622175]
[1751830018721,1e-08,2540.1,2540.0,13.56262175]
[1751830019054,1e-08,2540.1,2540.0,11.87500787]
[1751830021138,1e-08,2540.1,2540.0,3.93700787]
[1751830021338,1e-08,2540.1,2540.0,11.87500787]
[1751830027567,1e-08,2540.1,2540.0,7.938]
[1751830028562,1e-08,2540.1,2539.8,2.35234294]
[1751830028768,1e-08,2540.1,2539.9,7.938]
[1751830029264,0.81360001,2540.1,2539.9,7.938]
[1751830029467,0.81360001,2540.1,2539.9,11.87512312]
[1751830030565,0.81360001,2540.1,2539.9,7.938]
[1751830032067,0.81360001,2540.1,2539.9,11.87513487]
[1751830032865,1e-08,2540.1,2539.9,11.87513487]
[1751830033070,1e-08,2540.1,2540.0,3.93700787]
[1751830034674,1e-08,2540.1,2539.9,11.87709391]
[1751830039043,1e-08,2540.1,2540.0,3.93700787]
[1751830041176,1e-08,2540.1,2539.9,11.87707859]
[1751830041764,1e-08,2540.1,2540.0,3.93700787]
[1751830043075,1e-08,2540.1,2540.0,3.97637794]
[1751830043372,1e-08,2540.1,2540.0,5.8801761]
[1751830043981,1e-08,2540.1,2540.0,8.23051904]
[1751830044286,1e-08,2540.1,2540.0,8.19114897]
[1751830046877,1e-08,2540.1,2540.0,5.84080603]
[1751830047081,1e-08,2540.1,2540.0,5.8801761]
[1751830054376,1e-08,2540.1,2540.0,5.84080603]
[1751830054686,1e-08,2540.1,2540.0,8.19586892]
[1751830056297,1e-08,2540.1,2540.0,6.29207076]
[1751830056682,1e-08,2540.1,2540.0,3.93700787]
[1751830064723,1e-08,2540.1,2540.0,3.97637794]
[1751830064881,1e-08,2540.1,2540.0,4.75037794]
[1751830068314,1e-08,2540.1,2540.0,4.71100787]
[1751830068517,1e-08,2540.1,2540.0,6.9589328]
[1751830072606,1e-08,2540.1,2540.0,6.99830287]
[1751830072912,1e-08,2540.1,2540.0,9.35336576]
[1751830073112,1e-08,2540.1,2540.0,9.31399569]
[1751830074420,1e-08,2540.1,2540.0,6.9589328]
[1751830075305,1e-08,2540.1,2540.0,9.31399569]
[1751830081514,1e-08,2540.1,2540.0,8.53999569]
[1751830082694,1e-08,2540.1,2540.0,14.22807076]
[1751830082888,1e-08,2540.1,2540.0,10.29106289]
[1751830083217,1e-08,2540.1,2540.0,7.936]
[1751830083388,1e-08,2540.1,2540.0,11.87300787]
[1751830084090,1e-08,2540.1,2540.0,14.22807076]
[1751830084917,1e-08,2540.1,2540.0,11.87300787]
[1751830085120,1e-08,2540.1,2540.0,14.22807076]
[1751830085424,1e-08,2540.1,2540.0,11.87300787]
[1751830085593,1e-08,2540.1,2540.0,14.22807076]
[1751830104214,1e-08,2540.1,2540.0,16.47628772]
[1751830124061,1e-08,2540.1,2540.0,4.60327985]
[1751830124261,4.69700787,2540.0,2539.9,0.002]
[1751830124468,0.76,2540.0,2539.9,0.002]
[1751830125056,1e-08,2540.1,2540.0,3.93700787]
[1751830126427,1e-08,2540.1,2540.0,3.97637794]
[1751830126660,1e-08,2540.1,2540.0,5.64307202]
[1751830139667,1e-08,2540.1,2540.0,5.60370195]
[1751830139868,1e-08,2540.1,2540.0,3.93700787]
[1751830141668,1e-08,2540.1,2540.0,3.97637794]
[1751830156889,1e-08,2540.1,2540.0,4.77977794]
[1751830162805,1e-08,2540.1,2540.0,3.93700787]
[1751830170706,1e-08,2540.1,2540.0,11.86900787]
[1751830173006,0.7787,2540.0,2539.9,0.002]
[1751830173306,5.39225878,2540.0,2539.9,0.002]
[1751830173507,1.45525091,2540.0,2539.9,0.002]
[1751830173808,1.14795537,2540.0,2539.9,0.002]
[1751830174208,1.14795537,2540.0,2539.9,3.93916288]
[1751830174377,1.14795537,2540.0,2539.9,0.002]
[1751830175407,0.7787,2540.0,2539.9,0.002]
[1751830176109,7.72987877,2540.0,2539.9,0.002]
[1751830176680,1e-08,2540.1,2539.9,3.93916288]
[1751830176897,1e-08,2540.1,2540.0,3.93700787]
[1751830180935,1e-08,2540.1,2540.0,11.89200787]
[1751830183634,1e-08,2540.1,2539.9,3.93916288]
[1751830183635,0.81590001,2540.1,2539.9,0.002]
[1751830183806,6.95117877,2540.0,2539.9,0.002]
[1751830184339,7.72788665,2540.0,2539.9,0.002]
[1751830186191,6.95117877,2540.0,2539.9,0.002]
[1751830186796,0.81590001,2540.1,2539.9,0.002]
[1751830187934,0.81590001,2540.1,2540.0,3.93700787]
[1751830190843,1e-08,2540.1,2540.0,3.93700787]
[1751830203614,0.81620001,2540.1,2539.9,3.9390724]
[1751830203813,10.45890104,2540.1,2539.9,3.9390724]
[1751830204154,9.50809185,2540.1,2539.9,3.9390724]
[1751830205768,9.50809185,2540.1,2540.0,3.93700787]
[1751830205967,0.81620001,2540.1,2540.0,3.93700787]
[1751830206266,1e-08,2540.1,2540.0,3.93700787]
[1751830206463,1e-08,2540.1,2540.0,4.80618191]
[1751830206665,1e-08,2540.1,2540.0,4.84555198]
[1751830207046,1e-08,2540.1,2540.0,12.79455198]
[1751830207388,1e-08,2540.1,2540.0,12.75518191]
[1751830228896,1e-08,2540.1,2540.0,13.51798191]
[1751830232095,1e-08,2540.1,2540.0,5.56898191]
[1751830232278,1e-08,2540.1,2540.0,13.50998191]
[1751830240407,1e-08,2540.1,2540.0,14.05998191]
[1751830242687,1e-08,2540.1,2540.0,24.05998191]
[1751830244016,1e-08,2540.1,2540.0,32.75187375]
[1751830244741,1e-08,2540.1,2540.0,37.44187375]
[1751830244896,1e-08,2540.6,2540.5,5.29513302]
[1751830245227,1e-08,2540.6,2540.5,14.19664465]
[1751830245529,1e-08,2540.6,2540.5,14.15728232]
[1751830246654,1e-08,2540.6,2540.5,24.15728232]
[1751830247004,1e-08,2540.6,2540.5,27.66987606]
[1751830247201,1e-08,2540.6,2540.5,27.96661812]
[1751830248440,0.0430518,2540.9,2540.8,4.75106826]
[1751830248441,1e-08,2540.9,2540.8,4.75106826]
[1751830248605,1e-08,2540.9,2540.8,12.73142594]
[1751830248937,1e-08,2540.9,2540.8,12.69206826]
[1751830256550,1e-08,2540.9,2540.8,4.75106826]
[1751830256729,1e-08,2540.9,2540.8,12.68806826]
[1751830256929,1e-08,2540.9,2540.8,15.06310219]
[1751830262875,1e-08,2540.9,2540.8,6.31080219]
[1751830263073,1e-08,2540.9,2540.8,11.86876826]
[1751830263496,8.69189185,2540.9,2540.3,0.815]
[1751830263649,0.7939,2540.5,2540.4,3.93638797]
[1751830263852,0.7939,2540.5,2540.4,7.941]
[1751830264063,1.74247918,2540.5,2540.4,7.941]
[1751830264353,0.7939,2540.5,2540.4,7.941]
[1751830265261,0.7939,2540.5,2540.4,11.87738797]
[1751830265581,0.7939,2540.5,2540.4,7.941]
[1751830266799,0.7939,2540.4,2539.9,0.002]
[1751830267094,9.48579184,2540.1,2539.9,7.943]
[1751830267450,9.48579184,2540.1,2539.9,0.002]
[1751830267756,0.7939,2540.0,2539.9,0.002]
[1751830269010,0.7939,2540.0,2539.9,3.93916288]
[1751830269378,0.7939,2540.0,2539.9,0.002]
[1751830271011,0.7939,2540.0,2539.9,3.93916288]
[1751830271480,0.7939,2540.0,2539.9,0.002]
[1751830274898,0.7939,2540.0,2539.9,3.93916288]
[1751830275276,0.7939,2540.0,2539.9,0.002]
[1751830275599,0.7939,2540.0,2539.9,3.93916288]
[1751830283822,2.7237,2540.2,2540.0,3.93699845]
[1751830284032,4.25889836,2540.2,2540.0,3.93699845]
[1751830285534,10.7967,2540.4,2540.0,3.93697677]
[1751830285737,0.7967,2540.4,2540.3,3.93654292]
[1751830285907,2.7247,2540.6,2540.1,3.93685287]
[1751830286113,1.928,2540.6,2540.5,3.93623302]
[1751830286441,0.7977,2540.9,2540.8,3.93576826]
[1751830286736,0.001,2540.9,2540.8,3.93576826]
[1751830290728,0.001,2540.9,2540.7,11.88588885]
[1751830290927,0.001,2540.9,2540.8,7.949]
[1751830291131,0.001,2540.9,2540.8,11.88476826]
[1751830292536,0.001,2540.9,2540.7,3.9358389]